Cogmind - Beta 16.1 @@@ ROGUE MODE // 2026.06.22 @ 22:51:37 Player: JTMusky Result: Destroyed by S-10 Pest with Light Assault Rifle Performance ------------- Evolutions (0) 0 Regions Visited (2) 400 Robots Destroyed (13) 65 Value Destroyed (226) 226 Prototype IDs (3) 60 Alien Tech Used (0) 0 Bonus (0) 0 TOTAL SCORE: 751 Bonus ------- None Cogmind --------- Core Integrity 0/250 Matter 300/300 Energy 99/100 System Corruption 0% Temperature Cool (0) Movement Core (50) Location -10/Mines Parts ------- > --- POWER (1) -------- (None) > --- PROPULSION (2) --- (None) > --- UTILITY (2) ------ Structural Scanner Signal Interpreter > --- WEAPON (2) ------- (None) > --- INVENTORY (5) ---- Ion Engine Sensor Array Improved Terrain Scanner Beamcaster Mining Laser Peak State ------------ > --- POWER ------------ Ion Engine > --- PROPULSION ------- Light Treads Light Treads > --- UTILITY ---------- Small Storage Unit Improved Terrain Scanner > --- WEAPON ----------- EM Pulse Gun Mining Laser > --- INVENTORY -------- (None) [Rating: 9] Favorites ----------- Power Ion Engine Engine Ion Engine Propulsion Light Treads Treads Light Treads Utility Signal Interpreter Device Improved Terrain Scanner Storage Small Storage Unit Processor Signal Interpreter Weapon EM Pulse Gun Energy Gun EM Pulse Gun Special Weapon Mining Laser Build | -11 -10 -10 ------- Run | Yrd Mat Min Slots Evolved . | . . . Power . | . . . Propulsion . | . . . Utility . | . . . Weapon . | . . . Parts Attached 12 | 7 5 . Power 1 | 1 . . Engine 1 | 1 . . Core . | . . . Reactor . | . . . Propulsion 4 | 2 2 . Treads 4 | 2 2 . Leg . | . . . Wheel . | . . . Hover . | . . . Flight . | . . . Utility 5 | 2 3 . Device 3 | 1 2 . Storage 1 | 1 . . Processor 1 | . 1 . Hackware . | . . . Protection . | . . . Artifact . | . . . Weapon 2 | 2 . . Energy Gun 1 | 1 . . Energy Cannon . | . . . Ballistic Gun . | . . . Ballistic Cannon . | . . . Launcher . | . . . Special Weapon 1 | 1 . . Impact Weapon . | . . . Slashing Weapon . | . . . Piercing Weapon . | . . . Special Melee Weapon . | . . . Unidentified Prototypes . | . . . Parts Lost 5 | . 5 . Power 1 | . 1 . Propulsion 2 | . 2 . Utility . | . . . Weapon 2 | . 2 . Highest Loss Streak 4 | . 4 . To Critical Strikes . | . . . Average Backups 2 | . 3 5 Power . | . . 1 Propulsion . | . . . Utility 1 | . 2 2 Weapon . | . . 1 Tool/Special . | . . . Unused Backups 3 | . 1 2 Power 1 | . . 1 Propulsion . | . . . Utility 1 | . 1 . Weapon 1 | . . 1 Tool/Special . | . . . Average Slot Usage (%) 84 | . 86 28 Engine 12 | . 13 . Treads 26 | . 27 . Device 14 | . 14 14 Processor 13 | . 12 14 Energy Gun 12 | . 13 . Special Weapon 3 | . 3 . Peak Build Rating 9 | 9 9 3 Average Rating 6 | 6 7 2 On Entrance 3 | . 9 2 Avg Prop Armor Cover (%) . | . . . Naked Turns . | . . . Heaviest Build 14 | 14 14 1 Greatest Support 40 | 40 40 3 Greatest Overweight (x) 2 | . 2 . Average Overweight (x) . | . . . Largest Inventory Capacity 8 | 8 8 5 Average Capacity 6 | 7 5 5 Most Carried 5 | . 5 5 Average Carried 2 | . 3 4 Final Capacity 8 | 8 5 5 Final Carried 5 | . 5 5 Class Distribution -------------------- 100% | Mutant Dominant Class ---------------- Mutant | -10/Materials Mutant | -10/Mines Resources | -11 -10 -10 ----------- Run | Yrd Mat Min Matter Collected 310 | 243 67 . Remotely . | . . . Salvage Created 464 | 75 389 . Parts 27 | 9 18 . Haulers Intercepted 1 | . 1 . Recyclers Shooed 1 | 1 . . Parts Field Recycled . | . . . Retrieved Matter . | . . . Parts Self-Destructed . | . . . Prevented . | . . . Parts Restored . | . . . Kills | -11 -10 -10 ------- Run | Yrd Mat Min Combat Hostiles Destroyed 6 | . 6 . Guns 5 | . 5 . AOE 1 | . 1 . Classes Destroyed 7 | 2 5 . Worker 1 | 1 . . Tunneler 3 | 2 1 . Hauler 1 | . 1 . Recycler 1 | . 1 . Watcher 1 | . 1 . Swarmer 1 | . 1 . Grunt 5 | . 5 . Best Kill Streak 2 | 1 2 . Combat Bots Only 2 | . 2 . Max Kills in Single Turn 1 | 1 1 . Gunslinging . | . . . Exploded 1 | . 1 . Melee . | . . . Uniques/NPCs Destroyed . | . . . Combat | -11 -10 -10 -------- Run | Yrd Mat Min Hostile Shots Fired 115 | . 91 24 Missed 36 | . 25 11 Hits 79 | . 66 13 Projectile 79 | . 66 13 Critical Strikes 3 | . 3 . Damage Taken 715 | . 610 105 Core 252 | . 155 97 Absorbed by Shields . | . . . Core Remaining (%) 100 | 100 . . Volleys Fired 47 | 9 38 . Largest 1 | 1 1 . Hottest 100 | 40 100 . Shots Fired 47 | 9 38 . Gun 45 | 9 36 . Cannon . | . . . Launcher . | . . . Special 2 | . 2 . Kinetic . | . . . Thermal 2 | . 2 . Explosive . | . . . Electromagnetic 45 | 9 36 . Robot Hit Streak 5 | 2 5 . Robot Miss Streak 3 | 2 3 . Penetration Max . | . . . Secondary Targets . | . . . Shots Hit Robots 31 | 5 26 . Core Hits 18 | 3 15 . Critical Kills . | . . . Critical Parts Destroyed . | . . . Critical Strikes 1 | 1 . . Corrupt 1 | 1 . . Melee Attacks . | . . . Impact . | . . . Slashing . | . . . Piercing . | . . . Sneak Attacks . | . . . Combat Hostiles . | . . . Follow-up Attacks . | . . . Damage Inflicted 502 | 92 410 . Guns 411 | 63 348 . Cannons . | . . . Explosions 91 | 29 62 . Melee . | . . . Ramming . | . . . Kinetic . | . . . Thermal 91 | 29 62 . Explosive . | . . . Electromagnetic 411 | 63 348 . Impact . | . . . Slashing . | . . . Piercing . | . . . Highest Corruption . | . . . Average Corruption . | . . . Corruption Purged . | . . . Corruption Blocked . | . . . Overload Shots . | . . . Overflow Damage . | . . . Projectiles . | . . . Explosions . | . . . Melee . | . . . Knockbacks . | . . . Impact . | . . . Kinetic . | . . . Secondary . | . . . Self-Inflicted Damage 34 | . 34 . Shots 1 | . 1 . Rammed . | . . . Targets Rammed . | . . . Kicked . | . . . Crushed . | . . . Highest Temperature 60 | . 60 . Average Temperature 19 | . 19 . Received Heat Transfer 102 | . 102 . Siege Activations . | . . . Martial Activations . | . . . Shielding Activations . | . . . Robots Disrupted . | . . . Combat Hostiles . | . . . Robots Corrupted . | . . . Combat Hostiles . | . . . Parts Fried 1 | . 1 . Impact Corruptions . | . . . Robots Melted . | . . . Combat Hostiles . | . . . Parts Melted . | . . . Heat Transferred 100 | . 100 . Parts Sabotaged . | . . . Parts Stolen . | . . . Parts Stripped . | . . . Power Chain Reactions 3 | 1 2 . Alert | -11 -10 -10 ------- Run | Yrd Mat Min Maximum Alert Level . | . . . Low Security (%) 100 | 100 100 100 Level 1 . | . . . Level 2 . | . . . Level 3 . | . . . Level 4 . | . . . Level 5 . | . . . High Security . | . . . Max Security . | . . . Peak Influence 55 | 5 55 . Initial . | . . . Average 4 | . 6 . Influence Increases 245 | 15 230 . Destroy 0b10 Robot/C 120 | . 120 . Destroy 0b10 Robot/NC 35 | 15 20 . Destroy Leader 34 | . 34 . Successful Hack 13 | . 13 . Destroy Structure 13 | . 13 . Lose Combat Pursuer 30 | . 30 . Influence Decreases 245 | 15 230 . Time Decay 202 | 15 187 . Lost Part 43 | . 43 . Squads Dispatched 3 | . 3 . Investigation 2 | . 2 . Extermination . | . . . Reinforcement 1 | . 1 . Assault . | . . . Garrison . | . . . Intercept . | . . . Searches Triggered . | . . . Construction Impeded . | . . . Haulers Reinforced . | . . . Active Scanning Responses . | . . . Cargo Convoy Interrupts . | . . . Stealth | -11 -10 -10 --------- Run | Yrd Mat Min Distress Signals 1 | . 1 . Communications Jammed . | . . . Distress Signals . | . . . Times Spotted 14 | . 11 3 Peak Tracking Total 4 | . 4 3 Tactical Retreats 2 | . 2 . Traps | -11 -10 -10 ------- Run | Yrd Mat Min Traps Triggered 2 | . 2 . Indirectly . | . . . Trap Hack Attempts . | . . . Triggered . | . . . Disarmed . | . . . Reprogrammed . | . . . Reused . | . . . Traps Extracted . | . . . Installed . | . . . Triggered . | . . . Machines | -11 -10 -10 ---------- Run | Yrd Mat Min Machines Disabled . | . . . Max in Single Turn . | . . . Machines Repaired . | . . . Machines Dismantled . | . . . Machines Sabotaged . | . . . Overloaded Fab Kills . | . . . Hacking | -11 -10 -10 --------- Run | Yrd Mat Min Machines Accessed 5 | . 5 . Terminals 4 | . 4 . Fabricators . | . . . Repair Stations . | . . . Recycling Units 1 | . 1 . Scanalyzers . | . . . Garrison Access . | . . . Total Hacks 9 | . 9 . Successful 7 | . 7 . Failed 2 | . 2 . Catastrophic . | . . . Database Lockouts . | . . . Manual . | . . . Terminals 8 | . 8 . Fabricators . | . . . Repair Stations . | . . . Recycling Units 1 | . 1 . Scanalyzers . | . . . Garrison Access . | . . . Terminal Hacks 7 | . 7 . Record 3 | . 3 . Prototype ID Bank 1 | . 1 . Dispatch Records 1 | . 1 . Maintenance Status 1 | . 1 . Zone Layout 1 | . 1 . Fabricator Hacks . | . . . Repair Station Hacks . | . . . Recycling Unit Hacks . | . . . Scanalyzer . | . . . Garrison Access Hacks . | . . . Unauthorized Hacks . | . . . Terminals . | . . . Fabricators . | . . . Repair Stations . | . . . Recycling Units . | . . . Scanalyzers . | . . . Garrison Access . | . . . Data Cores Recovered . | . . . Used . | . . . Hacking Detections 3 | . 3 . Full Trace Events . | . . . Feedback Events . | . . . Feedback Blocked . | . . . Robot Schematics Acquired . | . . . Robots Built . | . . . Authchips . | . . . Time . | . . . Total Robot Build Rating . | . . . Part Schematics Acquired . | . . . Parts Built . | . . . Authchips . | . . . Time . | . . . Total Part Build Rating . | . . . Part Studies Acquired . | . . . Parts Repaired . | . . . Time . | . . . Parts Recycled . | . . . Recycled Matter . | . . . Retrieved Matter . | . . . Retrieved Components . | . . . Parts Scanalyzed . | . . . Part Schematics Acquired . | . . . Parts Damaged . | . . . Bothacking | -11 -10 -10 ------------ Run | Yrd Mat Min Used RIF Installer . | . . . Robots Hacked . | . . . Non-combat . | . . . Combat . | . . . Robot Hacks Applied . | . . . Relay Couplers Released . | . . . Fabnet Peak Effective % . | . . . Robots Rewired . | . . . Allies Hacked . | . . . Hacks Repelled . | . . . Allies | -11 -10 -10 -------- Run | Yrd Mat Min Total Allies . | . . . Largest Group . | . . . Highest-Rated Group . | . . . Highest-Rated Ally . | . . . Total Orders . | . . . Ally Attacks . | . . . Total Damage . | . . . Kills . | . . . Allies Corrupted . | . . . Allies Melted . | . . . Intel | -11 -10 -10 ------- Run | Yrd Mat Min Active Infowar (turns) 1197 | 216 955 26 Sensors 205 | . 205 . Terrain 860 | 216 644 . Structural 132 | . 106 26 Robot Analysis Total . | . . . Derelict Logs Recovered . | . . . Drone Launches . | . . . Drone Recoveries . | . . . Exploration | -11 -10 -10 ------------- Run | Yrd Mat Min Turns Passed 1536 | 552 958 26 Spaces Moved 657 | 167 442 48 Core 77 | 2 27 48 Treads 580 | 165 415 . Legs . | . . . Wheels . | . . . Hover . | . . . Flight . | . . . Fastest Speed 50 | 50 50 50 Average Speed 147 | 158 154 50 Slowest Speed 160 | 160 160 50 Overloaded Moves . | . . . Propulsion Burnouts . | . . . Robots Hopped . | . . . Potential Cave-ins . | . . . Cave-ins Triggered . | . . . Exploration Rate (%) 29 | 14 55 18 Regions Visited 2 Branch Regions 1 Pre-discovered Areas . | . . . Known Exits Taken 1 | . 1 . Unknown Exits Taken 1 | 1 . . Scrap Searched . | . . . Spaces Dug 2 | . 2 . Terrain Destroyed 17 | 6 11 . Melee . | . . . Projectile 2 | . 2 . AOE 15 | 6 9 . Terrain Rammed . | . . . Walls Destroyed . | . . . Machines Disabled . | . . . Actions | -11 -10 -10 --------- Run | Yrd Mat Min Total 1166 | 442 674 50 Wait 441 | 260 181 . Move 655 | 166 441 48 Hop . | . . . Pick Up 7 | . 6 1 Fast Attach 9 | 7 2 . Attach . | . . . Detach . | . . . Swap 3 | . 3 . Drop 4 | . 3 1 Fire 47 | 9 38 . Melee . | . . . Ram . | . . . Kick . | . . . Crush . | . . . Escape Stasis . | . . . Rewire . | . . . Trap . | . . . Miscellaneous . | . . . Route ------- -11/Scrapyard -10/Materials (discovered 3 exits: *Mat x2 / *Min) -10/Mines History --------- Turn | Location | Event 29 | -11/Scrapyard | Discovered new exit (range 16) 553 | -11/Scrapyard | Entered Materials 554 | -10/Materials | Build established: Mutant 657 | -10/Materials | Discovered new exit (range 12) 677 | -10/Materials | Identified exit to Mines 741 | -10/Materials | Discovered new exit (range 15) 790 | -10/Materials | Identified exit to Materials 993 | -10/Materials | Discovered exit to Materials (range 15) 1153 | -10/Materials | Derelicts attacked the area 1494 | -10/Materials | Core integrity fell below 50% 1511 | -10/Materials | Entered Mines 1518 | -10/Mines | Core integrity fell below 20% 1527 | -10/Mines | Lost 4 parts (1p2n1w) 1537 | -10/Mines | Destroyed by S-10 Pest with Light Assault Rifle Last Messages --------------- 01458_ G-34 Mercenary destroyed. 01464_ EM Pulse Gun destroyed. 01466_ Acquired 5 matter. 01467_ Ion Engine destroyed. 01480_ R-06 Scavenger collects Sml. Laser. 01493_ Lgt. Treads destroyed. 01507_ Dropped Hcp. Storage Unit. 01509_ Acquired Mining Laser. LOCATION=MINES GOAL=ESCAPE Something is scanning the area. 01512_ A derelict emerges from the shadows: "Quick, help me dispose of these Unaware!" 01512_ S-10 Pest: "SECOND INTRUDER APPROACHING. ELIMINATE." 01512_ XU-HBT(g) suffers critical hit (Destroy). 01512_ XU-HBT(g): "Mission, incomplete...*fzzt*" 01512_ XU-HBT(g) destroyed. 01514_ Dropped Sml. Storage Unit. 01515_ Acquired Beamcaster. Map ----- +----------------------------------------------------+ | ??????## ##????### ##??????? | | ??????## ######### ## # #####???? | | ??????## ######### ##### ######??? | | ??????### ##### ! ###??? | | ???????## ############### ##??? | | ???????### ############## !%=##??? | | ???????### ####?????#### *###??? | | ????????## ####???### #######??? | | ????????## ###???## #######???? | | ????????### ##???## ####???????? | | ????????#### ###??### ###?????????? | | ?????????### ###??########??????????? | | ??????????### ##???######???????????? | | ??????????#### ##????????????????????? | | ???????????### ###????????????????????? | | ????????????## ###????????????????????? | | ????????????## ##?????????????????????? | | ????????????## ##?????????????????????? | | ????????????## ##?????????????????????? | | ????????????## ##?????????????????????? | | ????????????## ##?????????????????????? | | ????????????## ##?????????????????????? | | ????????????## r##?????????????????????? | | ????????????## ##?????????????????????? | | ????????????## ##?????????????????????? | | ????????????## @##?????????????????????? | | ????????????## ##?????????????????????? | | ????????????## ##?????????????????????? | | ????????????## ##?????????????????????? | | ????????????## ##?????????????????????? | | ????????????## ##?????????????????????? | | ????????????## ##?????????????????????? | | ????????????## ##?????????????????????? | | ????????????## ?????????????????????? | | ???????????? ?????????????????????? | | ???????????? ##?????????????????????? | | ????????????### ##?????????????????????? | | ????????????### ##?????????????????????? | | ??????????????? ???????????????????????? | | ??????????????? ???????????????????????? | | ??????????????? ???????????????????????? | | ???????????????????????????????????????? | | ???????????????????????????????????????? | | ???????????????????????????????????????? | | ???????????????????????????????????????? | | ???????????????????????????????????????? | | ???????????????????????????????????????? | | ???????????????????????????????????????? | | ???????????????????????????????????????? | | ???????????????????????????????????????? | +----------------------------------------------------+ Best States ------------- Heat Dissipation 25 Energy Generation 10 Energy Capacity 250 Matter Stores 300 Matter Capacity 300 Sight Range 16 Robot Scan Range 14 Terrain Scan Range 16 Terrain Scan Density 10 Evasion (%) 50 Recoil Reduction 2 Item Schematics ----------------- None Robot Schematics ------------------ None Fabricated ------------ Nothing Repaired ---------- Nothing Studied --------- None Alien Tech Used ----------------- None Achievements -------------- None Challenges ------------ None Game ------ Seed TowerChargeFemtoactuators Manual? 0 Play Time 00:16:20 Cumulative 45.7 hours Start 2026.06.22 @ 22:35:56 End 2026.06.22 @ 22:51:37 Sessions 1 Manual Loads 0 Difficulty Rogue Special Mode None Game No. 66 Rogue 66 Adventurer 0 Explorer 0 Win Type - Total 0 Types 0/0/0/0/0/0/0/0/0/0 Lore% 15 Gallery% 18 Achievement% 13 Wizard Run 0 Options --------- Layout 2 ASCII 1 Keyboard 1 Movement Vi Keybinds 1 Fullscreen 2 Font 32/SmallcapsGlow Map View 50x44 Zoom Use 0% Tactical HUD 1 Map Filters NONE Filters NONE Steam 0 RUN: 16fb7b29-08b4-4f9b-bdd1-598eb234a745